[Event "German-ch Blitz Women 2022"]
[Site "Magdeburg"]
[Date "2022.08.13"]
[Round "23.7"]
[White "Daemering, Katrin"]
[Black "Kosovska, Olena"]
[Result "1-0"]
[ECO "B32"]
[WhiteElo "1965"]
[BlackElo "1831"]
[Annotator "TA"]
[PlyCount "65"]
[EventDate "2022.08.10"]
[EventType "tourn"]
[EventCountry "GER"]
[SourceTitle "playchess.com"]
[Source "ChessBase"]
[SourceQuality "1"]
[TimeControl "180+2"]

{[%evp 18,65,-24,-27,-22,-27,22,-27,45,11,109,60,79,0,0,-7,17,-29,0,-14,10,-93,-105,-114,-103,-170,-163,-147,-82,-87,-14,-79,0,-76,167,170,177,177,542,534,883,835,2175,965,29968,29960,29965,29955,29966,12457]} 1. e4 {[%emt 0:00:01]} c5 {[%emt 0:00:01]} 2. Nf3 {[%emt 0:00:01]} Nc6 {[%emt 0:00:00]} 3. d4 {[%emt 0:00:01]} cxd4 {[%emt 0:00:01]} 4. c3 {[%emt 0:00:01]} dxc3 {[%emt 0:00:02]} 5. Nxc3 {[%emt 0:00:01]} e6 {[%emt 0:00:01]} 6. Bc4 {[%emt 0:00:01]} Bb4 {[%emt 0:00:02]} 7. O-O {[%emt 0:00:02]} Bxc3 {[%emt 0:00:04]} 8. bxc3 {[%emt 0:00:01]} Nge7 {[%emt 0:00:02]} 9. Bf4 {[%emt 0:00:09]} O-O {[%emt 0:00:07]} 10. Bd6 {[%emt 0:00:02]} Re8 {[%emt 0:00:03] B21: Sicilian: 2 f4 and Morra Gambit.} 11. Qe2 {[%emt 0:00:08] [#]} Ng6 $146 {[%emt 0:00:03]} (11... b6 $142) ({Predecessor:} 11... a6 12. Rad1 b5 13. Bb3 Na5 14. Bc2 Nc4 15. e5 Nf5 16. g4 Nfxd6 17. exd6 Bb7 {1-0 (29) Sobek,M (1914)-Loucky,T (1305) Chess.com INT 2021}) 12. Rfd1 {[%emt 0:00:10]} (12. Nd4 $142 $1) 12... a6 {[%emt 0:00:14]} (12... b6 $11) 13. a4 {[%emt 0:00:03]} Qa5 {[%emt 0:00:09]} (13... Na5 $11) 14. h3 {[%emt 0:00:14] White is more active.} (14. Qe3 $16) 14... Qxc3 {[%emt 0:00:11] [#]} 15. Rac1 {[%emt 0:00:33]} (15. e5 $1 $16 {[%cal Oa4a5] And now a5! would win.} Qa5 16. Qe4) 15... Qa5 $11 {[%emt 0:00:07]} 16. Bb3 {[%emt 0:00:05] This bishop pair is nice.} b5 {[%emt 0:00:06]} 17. Rc5 {[%emt 0:00:10]} (17. Ng5 $142 h6 18. Nf3) 17... Qb6 {[%emt 0:00:39]} 18. axb5 {[%emt 0:00:08]} axb5 {[%emt 0:00:03]} (18... Na5 $5 {[%cal Ra5b7]} 19. Qe3 Nxb3 20. Qxb3 Bb7 $15) 19. Rxb5 {[%emt 0:00:03]} (19. Qxb5 Qxb5 20. Rxb5 Ba6 $17) (19. Ng5 $11 {keeps the balance.} h6 {[#]} 20. Nxf7 $1 (20. Rxb5 $2 Nd4 $19) 20... Kxf7 21. Qh5) 19... Ba6 $17 {[%emt 0:00:20]} 20. Rxb6 {[%emt 0:00:07]} Bxe2 {[%emt 0:00:02]} 21. Rd2 {[%emt 0:00:06]} (21. Rb1 $17) 21... Bxf3 {[%emt 0:00:09]} 22. gxf3 {[%emt 0:00:01]} Nge5 {[%emt 0:00:14]} (22... Nce5 $142 23. Rd1 Nxf3+ 24. Kg2 Ng5) 23. Kg2 {[%emt 0:00:06]} h6 {[%emt 0:00:01]} (23... Ra1 $17 {[%cal Oa1g1] White must now prevent ...Rg1+!} 24. Bxe5 Nxe5) 24. Rb7 {[%emt 0:00:11]} (24. Rb5 $11 Ra5 25. Rxa5 Nxa5 26. Bxe5 Nxb3 27. Rxd7) 24... f6 {[%emt 0:00:14]} (24... Na5 $17 {Threatens to win with ...Nxf3.} 25. Rb4 Nxb3 26. Rxb3 Nc4) 25. f4 {[%emt 0:00:04]} (25. Bxe5 $11 {remains equal.} Nxe5 26. f4) 25... Nf7 $2 {[%emt 0:00:11] A mistake that costs the game.} (25... Na5 $17 {stays on course.} 26. Rb4 Nec6) 26. Rxd7 $18 {[%emt 0:00:03]} Nxd6 {[%emt 0:00:02]} 27. R2xd6 {[%emt 0:00:03]} ({Don't do} 27. R7xd6 Nd8 28. f5 Kh7) 27... Nd8 {[%emt 0:00:11]} (27... Rad8 28. Rxe6 (28. Rxc6 Rxd7 29. Bxe6+ Rxe6 $16) 28... Rxd7) 28. f5 {[%emt 0:00:05]} Nf7 {[%emt 0:00:06]} 29. Bxe6 {[%emt 0:00:03]} Rf8 {[%emt 0:00:10]} 30. Rb6 {[%emt 0:00:07]} (30. Re7 $142 Rfd8 31. Bxf7+ Kf8 32. Rdd7) 30... Rad8 {[%emt 0:00:10]} 31. Rbb7 {[%emt 0:00:12] White mates.} Rxd7 {[%emt 0:00:01]} 32. Rxd7 {[%emt 0:00:02]} ({Not} 32. Bxd7 Nd8 33. Ra7 Rf7 $18) 32... h5 {[%emt 0:00:11]} 33. h4 {[%emt 0:00:01] Weighted Error Value: White=0.44/Black=0.94} 1-0

[Event "German-ch Blitz Women 2022"]
[Site "Magdeburg"]
[Date "2022.08.13"]
[Round "23.8"]
[White "Khrapko, Marharyta"]
[Black "Falke, Ornella"]
[Result "1-0"]
[ECO "B50"]
[WhiteElo "2128"]
[BlackElo "1912"]
[Annotator "NA RC"]
[PlyCount "71"]
[EventDate "2022.08.10"]
[EventType "tourn"]
[EventCountry "GER"]
[SourceTitle "playchess.com"]
[Source "ChessBase"]
[SourceQuality "1"]
[TimeControl "180+2"]

1. e4 {[%emt 0:00:02]} c5 {[%emt 0:00:02]} 2. Nf3 {[%emt 0:00:02]} d6 {[%emt 0:00:02]} 3. c3 {[%emt 0:00:01]} Nf6 {[%emt 0:00:01]} 4. Bd3 {[%emt 0:00:01]} Nc6 {[%emt 0:00:02]} 5. h3 {[%emt 0:00:01]} g6 {[%emt 0:00:02]} 6. Bc2 {[%emt 0:00:01]} Bg7 {[%emt 0:00:01]} 7. O-O {[%emt 0:00:02]} O-O {[%emt 0:00:04]} 8. a3 {[%emt 0:00:05]} b5 {[%emt 0:00:02]} 9. d4 {[%emt 0:00:03]} Nd7 {[%emt 0:00:11]} 10. Be3 {[%emt 0:00:10]} Bb7 {[%emt 0:00:06]} 11. Nbd2 {[%emt 0:00:14]} Rc8 {[%emt 0:00:05]} 12. Nb3 {[%emt 0:00:03]} cxd4 {[%emt 0:00:17]} 13. cxd4 {[%emt 0:00:06]} a5 {[%emt 0:00:06]} 14. Bd3 {[%emt 0:00:09]} b4 {[%emt 0:00:12]} 15. axb4 {[%emt 0:00:16]} Nxb4 16. Bb1 {[%emt 0:00:02]} Ra8 {[%emt 0:00:26]} 17. Qd2 {[%emt 0:00:09]} Nb6 {[%emt 0:00:22]} 18. Rc1 {[%emt 0:00:31]} Nc6 {[%emt 0:00:38]} 19. d5 {[%emt 0:00:19]} Ne5 {[%emt 0:00:12]} 20. Nxe5 {[%emt 0:00:01]} Bxe5 {[%emt 0:00:03]} 21. Nxa5 {[%emt 0:00:03]} Qd7 {[%emt 0:00:07]} 22. Bxb6 {[%emt 0:00:03]} Ba6 {[%emt 0:00:04]} 23. Bd4 {[%emt 0:00:07]} Bxd4 {[%emt 0:00:11]} 24. Qxd4 {[%emt 0:00:01]} Qb5 {[%emt 0:00:06]} 25. Nc6 {[%emt 0:00:05]} Rfe8 {[%emt 0:00:05]} 26. b4 {[%emt 0:00:09]} e5 {[%emt 0:00:02]} 27. Qd2 {[%emt 0:00:10]} Rac8 {[%emt 0:00:08]} 28. Ra5 {[%emt 0:00:05]} Qb7 {[%emt 0:00:01]} 29. Bd3 {[%emt 0:00:04]} Bxd3 {[%emt 0:00:05]} 30. Qxd3 {[%emt 0:00:02]} Kg7 {[%emt 0:00:05]} 31. Rca1 {[%emt 0:00:09]} Qd7 {[%emt 0:00:11]} 32. Ra7 {[%emt 0:00:04]} Rc7 {[%emt 0:00:00]} 33. Rxc7 {[%emt 0:00:04]} Qxc7 {[%emt 0:00:01]} 34. Ra7 {[%emt 0:00:01]} Qb6 {[%emt 0:00:02]} 35. Ra6 {[%emt 0:00:15]} Qb7 {[%emt 0:00:04]} 36. b5 {[%emt 0:00:01]} 1-0

[Event "German-ch Blitz Women 2022"]
[Site "Magdeburg"]
[Date "2022.08.13"]
[Round "23.9"]
[White "Grabowski, Petra"]
[Black "Stangl, Anita"]
[Result "0-1"]
[ECO "A40"]
[WhiteElo "1643"]
[BlackElo "2023"]
[Annotator "NA RC"]
[PlyCount "126"]
[EventDate "2022.08.10"]
[EventType "tourn"]
[EventCountry "GER"]
[SourceTitle "playchess.com"]
[Source "ChessBase"]
[SourceQuality "1"]
[TimeControl "180+2"]

1. d4 e6 2. Nf3 {[%emt 0:00:05]} d5 {[%emt 0:00:01]} 3. c4 {[%emt 0:00:02]} c6 {[%emt 0:00:00]} 4. cxd5 {[%emt 0:00:02]} exd5 {[%emt 0:00:01]} 5. Nc3 {[%emt 0:00:02]} Nf6 {[%emt 0:00:02]} 6. Qc2 {[%emt 0:00:07]} Bd6 {[%emt 0:00:08]} 7. e4 {[%emt 0:00:03]} dxe4 {[%emt 0:00:11]} 8. Nxe4 {[%emt 0:00:04]} Qe7 {[%emt 0:00:06]} 9. Nfd2 {[%emt 0:00:08]} Nxe4 {[%emt 0:00:04]} 10. Qxe4 {[%emt 0:00:06]} O-O {[%emt 0:00:05]} 11. Qxe7 {[%emt 0:00:04]} Bxe7 {[%emt 0:00:01]} 12. Bc4 {[%emt 0:00:08]} Bf6 {[%emt 0:00:02]} 13. d5 {[%emt 0:00:08]} b5 {[%emt 0:00:16]} 14. Bb3 {[%emt 0:00:11]} c5 {[%emt 0:00:03]} 15. O-O {[%emt 0:00:10]} c4 {[%emt 0:00:02]} 16. Bc2 {[%emt 0:00:10]} Bb7 {[%emt 0:00:02]} 17. Be4 {[%emt 0:00:10]} Rd8 {[%emt 0:00:01]} 18. b3 {[%emt 0:00:06]} Bxa1 {[%emt 0:00:02]} 19. bxc4 {[%emt 0:00:02]} bxc4 {[%emt 0:00:01]} 20. Nxc4 {[%emt 0:00:04]} Bf6 {[%emt 0:00:06]} 21. Ne3 {[%emt 0:00:18]} Bg5 {[%emt 0:00:08]} 22. Rd1 {[%emt 0:00:12]} Nd7 {[%emt 0:00:09]} 23. Bf5 {[%emt 0:00:12]} g6 {[%emt 0:00:18]} 24. Bg4 {[%emt 0:00:07]} Ne5 {[%emt 0:00:07]} 25. Bh3 {[%emt 0:00:08]} Bxe3 {[%emt 0:00:04]} 26. fxe3 {[%emt 0:00:11]} Rxd5 {[%emt 0:00:01]} 27. Rf1 {[%emt 0:00:08]} Rad8 {[%emt 0:00:01]} 28. Bb2 {[%emt 0:00:10]} Nc4 {[%emt 0:00:07]} 29. Bd4 {[%emt 0:00:03]} f5 {[%emt 0:00:09]} 30. Rb1 {[%emt 0:00:05]} Ba6 {[%emt 0:00:16]} 31. g4 {[%emt 0:00:11]} fxg4 {[%emt 0:00:10]} 32. Bxg4 {[%emt 0:00:02]} Rg5 {[%emt 0:00:02]} 33. h3 {[%emt 0:00:02]} h5 {[%emt 0:00:01]} 34. Kf2 {[%emt 0:00:02]} hxg4 {[%emt 0:00:01]} 35. hxg4 {[%emt 0:00:01]} Rxg4 {[%emt 0:00:03]} 36. Kf3 {[%emt 0:00:01]} Rg5 {[%emt 0:00:03]} 37. Rh1 {[%emt 0:00:02]} Rh5 {[%emt 0:00:02]} 38. Rc1 {[%emt 0:00:05]} Rf8+ {[%emt 0:00:03]} 39. Ke4 {[%emt 0:00:02]} Rh4+ {[%emt 0:00:05]} 40. Kd5 {[%emt 0:00:02]} Nxe3+ {[%emt 0:00:03]} 41. Bxe3 {[%emt 0:00:05]} Rd8+ {[%emt 0:00:08]} 42. Ke6 {[%emt 0:00:13]} Bc4+ {[%emt 0:00:07]} 43. Kf6 {[%emt 0:00:02]} Kh7 {[%emt 0:00:08]} 44. Rb1 {[%emt 0:00:04]} Rd7 {[%emt 0:00:03]} 45. Rb4 {[%emt 0:00:04]} Re4 {[%emt 0:00:04]} 46. Bc1 {[%emt 0:00:04]} Bd5 {[%emt 0:00:04]} 47. Rb2 {[%emt 0:00:02]} Rf7+ {[%emt 0:00:10]} 48. Kg5 {[%emt 0:00:03]} Re5+ {[%emt 0:00:03]} 49. Kg4 {[%emt 0:00:01]} Be6+ {[%emt 0:00:03]} 50. Kg3 {[%emt 0:00:01]} Rf1 {[%emt 0:00:09]} 51. Rh2+ {[%emt 0:00:02]} Rh5 {[%emt 0:00:01]} 52. Re2 {[%emt 0:00:03]} Rxc1 {[%emt 0:00:02]} 53. Rxe6 {[%emt 0:00:02]} Ra5 {[%emt 0:00:01]} 54. Re7+ {[%emt 0:00:01]} Kh6 {[%emt 0:00:01]} 55. Re4 {[%emt 0:00:01]} Rxa2 {[%emt 0:00:01]} 56. Rh4+ {[%emt 0:00:01]} Kg7 {[%emt 0:00:01]} 57. Rd4 {[%emt 0:00:01]} Rc7 {[%emt 0:00:02]} 58. Kf4 {[%emt 0:00:02]} Rf7+ {[%emt 0:00:02]} 59. Kg5 {[%emt 0:00:01]} Rg2+ {[%emt 0:00:04]} 60. Kh4 {[%emt 0:00:02]} Kf6 {[%emt 0:00:02]} 61. Rf4+ {[%emt 0:00:02]} Ke6 {[%emt 0:00:01]} 62. Re4+ {[%emt 0:00:00]} Kd5 {[%emt 0:00:00]} 63. Ra4 {[%emt 0:00:04]} Rh7# 0-1

[Event "German-ch Blitz Women 2022"]
[Site "Magdeburg"]
[Date "2022.08.13"]
[Round "23.10"]
[White "Braun, Kristin"]
[Black "Wulf, Constanze"]
[Result "1-0"]
[ECO "B01"]
[WhiteElo "1897"]
[BlackElo "1835"]
[Annotator "NA RC COMBH"]
[PlyCount "99"]
[EventDate "2022.08.10"]
[EventType "tourn"]
[EventCountry "GER"]
[SourceTitle "playchess.com"]
[Source "ChessBase"]
[SourceQuality "1"]
[TimeControl "180+2"]

1. e4 {[%emt 0:00:01]} d5 {[%emt 0:00:01]} 2. exd5 {[%emt 0:00:02]} Qxd5 3. d4 Nc6 {[%emt 0:00:04]} 4. Nf3 {[%emt 0:00:02]} Bg4 {[%emt 0:00:01]} 5. Nc3 {[%emt 0:00:13]} Qd7 {[%emt 0:00:28]} 6. Bb5 {[%emt 0:00:16]} a6 {[%emt 0:00:04]} 7. Bxc6 {[%emt 0:00:20]} Qxc6 {[%emt 0:00:02]} 8. d5 {[%emt 0:00:02]} Qd6 {[%emt 0:00:13]} 9. Be3 {[%emt 0:00:05]} Nf6 {[%emt 0:00:08]} 10. h3 {[%emt 0:00:06]} Bh5 {[%emt 0:00:04]} 11. O-O {[%emt 0:00:06]} O-O-O {[%emt 0:00:06]} 12. g4 {[%emt 0:00:27]} Bg6 {[%emt 0:00:02]} 13. Qd2 {[%emt 0:00:16]} Nxd5 {[%emt 0:00:03]} 14. Nxd5 {[%emt 0:00:05]} Qxd5 {[%emt 0:00:02]} 15. Qxd5 {[%emt 0:00:01]} Rxd5 {[%emt 0:00:01]} 16. c4 {[%emt 0:00:02]} Rd8 {[%emt 0:00:14]} 17. Rfd1 {[%emt 0:00:04]} e6 {[%emt 0:00:07]} 18. Ne5 {[%emt 0:00:08]} Be7 {[%emt 0:00:09]} 19. b3 {[%emt 0:00:08]} Bf6 {[%emt 0:00:02]} 20. Nxg6 {[%emt 0:00:03]} hxg6 {[%emt 0:00:03]} 21. Rxd8+ {[%emt 0:00:04]} Rxd8 {[%emt 0:00:13]} 22. Re1 {[%emt 0:00:07]} Rd3 {[%emt 0:00:01]} 23. Kg2 {[%emt 0:00:04]} Bc3 {[%emt 0:00:04]} 24. Re2 {[%emt 0:00:05]} Rd1 {[%emt 0:00:04]} 25. Rc2 {[%emt 0:00:03]} Bb4 {[%emt 0:00:03]} 26. Bf4 {[%emt 0:00:14]} Bd6 {[%emt 0:00:13]} 27. Bxd6 {[%emt 0:00:05]} Rxd6 {[%emt 0:00:07]} 28. f3 {[%emt 0:00:03]} Kd7 {[%emt 0:00:02]} 29. Kf2 {[%emt 0:00:00]} Kc6 {[%emt 0:00:03]} 30. Ke3 {[%emt 0:00:01]} Rd1 {[%emt 0:00:03]} 31. Rh2 {[%emt 0:00:03]} Re1+ {[%emt 0:00:04]} 32. Kd2 {[%emt 0:00:02]} Rf1 {[%emt 0:00:02]} 33. Ke2 {[%emt 0:00:02]} Ra1 {[%emt 0:00:01]} 34. Ke3 {[%emt 0:00:01]} Re1+ {[%emt 0:00:03]} 35. Kf4 {[%emt 0:00:02]} Kc5 {[%emt 0:00:09]} 36. Rd2 {[%emt 0:00:05]} Rh1 {[%emt 0:00:02]} 37. Kg3 {[%emt 0:00:01]} Ra1 {[%emt 0:00:02]} 38. h4 {[%emt 0:00:03]} a5 {[%emt 0:00:07]} 39. Rd7 {[%emt 0:00:05]} Kc6 {[%emt 0:00:17]} 40. Rxf7 {[%emt 0:00:01]} Rxa2 {[%emt 0:00:01]} 41. Rxg7 {[%emt 0:00:01]} Rb2 {[%emt 0:00:07]} 42. Rxg6 {[%emt 0:00:01]} Kd6 {[%emt 0:00:01]} 43. h5 {[%emt 0:00:04]} Rxb3 {[%emt 0:00:01]} 44. h6 {[%emt 0:00:00]} a4 {[%emt 0:00:01]} 45. h7 {[%emt 0:00:02]} a3 {[%emt 0:00:15]} 46. h8=Q {[%emt 0:00:02]} a2 {[%emt 0:00:02]} 47. Qd4+ {[%emt 0:00:05]} Ke7 {[%emt 0:00:03]} 48. Rg7+ {[%emt 0:00:01]} Kf8 {[%emt 0:00:05]} 49. Qf6+ {[%emt 0:00:00]} Ke8 {[%emt 0:00:01]} 50. Qe7# {[%emt 0:00:01]} 1-0

[Event "German-ch Blitz Women 2022"]
[Site "Magdeburg"]
[Date "2022.08.13"]
[Round "23.11"]
[White "Skibbe, Diana"]
[Black "Doll, Rebecca"]
[Result "1-0"]
[ECO "C36"]
[WhiteElo "1943"]
[BlackElo "1933"]
[Annotator "TA"]
[PlyCount "61"]
[EventDate "2022.08.10"]
[EventType "tourn"]
[EventCountry "GER"]
[SourceTitle "playchess.com"]
[Source "ChessBase"]
[SourceQuality "1"]
[TimeControl "180+2"]

{[%evp 15,61,-50,-64,-63,19,7,11,-12,0,-26,20,-20,-23,-22,6,0,17,6,26,14,15,0,53,-22,0,-33,-46,-36,-23,-64,8,-12,112,91,210,197,740,727,733,738,720,738,732,743,742,741,731,735]} 1. e4 {[%emt 0:00:01]} e5 {[%emt 0:00:01]} 2. f4 {[%emt 0:00:01]} d5 {[%emt 0:00:02]} 3. Nf3 {[%emt 0:00:01]} exf4 {[%emt 0:00:08]} 4. exd5 {[%emt 0:00:02]} Nf6 {[%emt 0:00:02]} 5. Bc4 {[%emt 0:00:02]} Nxd5 {[%emt 0:00:08]} 6. Bxd5 {[%emt 0:00:01]} Qxd5 {[%emt 0:00:02]} 7. Nc3 {[%emt 0:00:01][%cal Bb1c3,Bc3e2,Be2g3][%mdl 32]} Qd8 {[%emt 0:00:05]} 8. O-O {[%emt 0:00:05]} Be7 {[%emt 0:00:23]} 9. d4 {[%emt 0:00:03] C36: King's Gambit Accepted: 3 Nf3 d5.} O-O {[%emt 0:00:13]} (9... g5 $15) 10. Bxf4 $11 {[%emt 0:00:02]} c6 {[%emt 0:00:26] [#]} 11. Ne2 $146 {[%emt 0:00:04] The position is equal.} ({Predecessor:} 11. Qd3 Be6 12. Rae1 Nd7 13. Ne4 Bf5 14. Nf6+ Bxf6 15. Qxf5 Re8 16. Rxe8+ Qxe8 17. Re1 {½-½ (26) Koesebay,O (2512)-Kalchev,J (2527) ICCF email 2009}) 11... Nd7 {[%emt 0:00:10]} 12. c3 {[%emt 0:00:02]} Nf6 {[%emt 0:00:02]} (12... Re8 {should be considered.}) 13. Ng3 {[%emt 0:00:05]} Nd5 {[%emt 0:00:04]} 14. Bd2 {[%emt 0:00:12]} h6 {[%emt 0:00:09]} 15. Kh1 {[%emt 0:00:01]} Bg4 {[%emt 0:00:14]} 16. Qc2 {[%emt 0:00:02]} Qc7 {[%emt 0:00:11]} 17. Ne5 {[%emt 0:00:04]} Be6 {[%emt 0:00:10]} 18. Rae1 {[%emt 0:00:02]} c5 {[%emt 0:00:06]} ({Black should play} 18... Bh4 $11) 19. Qe4 {[%emt 0:00:12]} (19. Nf5 $14 cxd4 20. Nxd4) 19... Nf6 {[%emt 0:00:06]} 20. Qf3 {[%emt 0:00:09]} cxd4 {[%emt 0:00:07]} 21. cxd4 {[%emt 0:00:01]} Rad8 {[%emt 0:00:03]} 22. Bc3 {[%emt 0:00:03]} b5 {[%emt 0:00:04]} ({But not} 22... Bxa2 23. Nf5 Be6 {[#]} 24. Ba5 $1 Qxa5 25. Nxe7+ Kh8 26. N5g6+ $1 {[%mdl 512]} (26. Qxb7 Bd5 $11) 26... fxg6 27. Nxg6+ Kg8 28. Rxe6 $16 (28. Nxf8 $2 Bd5 $19)) (22... Nd5 $15) 23. a3 {[%emt 0:00:01]} a5 {[%emt 0:00:01]} ({Resist} 23... Bd5 24. Qe2) (23... Bd6 $11 {remains equal.}) 24. Nc6 $16 {[%emt 0:00:10] Pair of Knights!} Rde8 {[%emt 0:00:08]} (24... Nd5 $16 {might work better.} 25. Nxd8 Rxd8) 25. Bxa5 $18 {[%emt 0:00:08]} Qd6 {[%emt 0:00:09]} (25... Qc8 26. Nf5 Bxf5) 26. Bb4 {[%emt 0:00:04] White is clearly winning.} Qc7 {[%emt 0:00:25]} 27. Nxe7+ {[%emt 0:00:10]} Rxe7 {[%emt 0:00:02]} 28. Bxe7 {[%emt 0:00:02]} Qxe7 {[%emt 0:00:01]} 29. d5 {[%emt 0:00:02]} Nxd5 {[%emt 0:00:13] [#]} 30. Qxd5 $1 {[%emt 0:00:03][%mdl 512]} Bxd5 {[%emt 0:00:02]} 31. Rxe7 {[%emt 0:00:01] Weighted Error Value: White=0.20 (precise) /Black=0.47} 1-0

[Event "German-ch Blitz Women 2022"]
[Site "Magdeburg"]
[Date "2022.08.13"]
[Round "23.12"]
[White "Rath, Alina"]
[Black "Kunze, Kerstin"]
[Result "1-0"]
[ECO "A25"]
[WhiteElo "2062"]
[BlackElo "2020"]
[Annotator "NA RC"]
[PlyCount "37"]
[EventDate "2022.08.10"]
[EventType "tourn"]
[EventCountry "GER"]
[SourceTitle "playchess.com"]
[Source "ChessBase"]
[SourceQuality "1"]
[TimeControl "180+2"]

1. c4 {[%emt 0:00:01]} e5 {[%emt 0:00:01]} 2. Nc3 {[%emt 0:00:02]} Nc6 {[%emt 0:00:03]} 3. g3 {[%emt 0:00:01]} Nf6 {[%emt 0:00:01]} 4. Bg2 {[%emt 0:00:01]} Be7 {[%emt 0:00:02]} 5. e4 {[%emt 0:00:01]} O-O {[%emt 0:00:02]} 6. Nge2 {[%emt 0:00:01]} d6 {[%emt 0:00:01]} 7. O-O {[%emt 0:00:02]} Be6 {[%emt 0:00:02]} 8. d3 {[%emt 0:00:01]} Qd7 {[%emt 0:00:31]} 9. f4 {[%emt 0:00:01]} Bh3 {[%emt 0:00:04]} 10. f5 {[%emt 0:00:01]} Bxg2 {[%emt 0:00:02]} 11. Kxg2 {[%emt 0:00:01]} Nd4 {[%emt 0:00:20]} 12. h3 {[%emt 0:00:02]} Nxe2 {[%emt 0:00:02]} 13. Qxe2 {[%emt 0:00:01]} c6 {[%emt 0:00:01]} 14. g4 {[%emt 0:00:07]} g6 {[%emt 0:00:25]} 15. Bh6 {[%emt 0:00:07]} Rfe8 {[%emt 0:00:01]} 16. Qf2 {[%emt 0:00:29]} d5 {[%emt 0:00:10]} 17. fxg6 {[%emt 0:00:07]} hxg6 {[%emt 0:00:40]} 18. g5 {[%emt 0:00:04]} Kh7 {[%emt 0:00:13]} 19. gxf6 {[%emt 0:00:03]} 1-0